bitfinex-derivatives/quotes_ETHF0:USTF0_20240923
["timestamp","ask_amount","ask_price","bid_price","bid_amount"]
[1727079205466,9.0478,2645.4,2645.1,0.98452168]
[1727079205659,0.3781,2644.9,2644.8,0.3599]
[1727079205966,2.4381,2644.9,2644.8,0.3599]
[1727079206568,2.06,2644.9,2644.8,0.3599]
[1727079206764,2.43807,2645.1,2644.8,0.3599]
[1727079206963,0.3781,2644.9,2644.8,0.3599]
[1727079207263,2.4381,2644.9,2644.8,0.3599]
[1727079208063,2.4381,2644.9,2644.6,0.3844]
[1727079208064,0.37813,2644.7,2644.6,0.3844]
[1727079208266,0.37812,2644.8,2644.6,0.3844]
[1727079208463,0.37819,2644.3,2644.2,0.98452168]
[1727079208658,9.0494,2644.3,2643.8,0.3694]
[1727079208855,2.43823,2644.1,2643.8,0.3694]
[1727079209158,2.06,2643.9,2643.6,0.3757]
[1727079209366,2.06,2643.7,2643.6,0.3757]
[1727079209569,0.94551,2644.2,2643.6,0.3757]
[1727079209570,3.58601,2644.2,2643.6,0.3757]
[1727079209865,5.64601,2644.2,2643.6,0.3757]
[1727079210461,5.2678,2644.2,2643.6,0.3757]
[1727079210667,5.2678,2644.2,2643.6,0.75398]
[1727079210966,5.2678,2644.2,2643.6,0.3757]
[1727079211169,5.646,2644.2,2643.6,0.3757]
[1727079211657,5.2678,2644.2,2643.6,0.3757]
[1727079211854,2.06,2644.0,2643.6,0.3757]
[1727079212054,2.43823,2644.0,2643.6,0.3757]
[1727079212264,2.06,2644.0,2643.6,0.3757]
[1727079212661,2.43823,2644.0,2643.6,0.3757]
[1727079213054,2.06,2643.7,2643.6,0.3757]
[1727079214878,2.06,2644.0,2643.6,0.3757]
[1727079215467,2.06,2643.8,2643.2,30.0]
[1727079215664,2.06,2643.6,2643.3,0.3954]
[1727079215866,2.06,2643.6,2643.3,0.7907]
[1727079216075,2.06,2643.6,2643.3,4.37682]
[1727079216265,2.06,2643.8,2643.3,3.9985]
[1727079216466,2.06,2643.8,2643.3,4.37682]
[1727079216678,2.06,2643.8,2643.3,3.9985]
[1727079216864,3.2078,2644.1,2643.7,3.2078]
[1727079217172,3.2078,2644.1,2643.8,0.7281]
[1727079217361,3.2078,2644.1,2643.9,0.3954]
[1727079217672,0.94534,2644.7,2643.9,0.77364]
[1727079217973,0.37818,2644.4,2643.9,0.77364]
[1727079218275,0.37817,2644.5,2643.9,0.77364]
[1727079218466,2.43817,2644.4,2643.9,0.3954]
[1727079218661,2.06,2644.1,2643.9,0.3954]
[1727079218878,0.37823,2644.0,2643.9,0.3954]
[1727079219076,2.06,2644.1,2643.9,0.3954]
[1727079219077,2.43822,2644.1,2643.9,0.3954]
[1727079219372,0.37823,2644.0,2643.9,0.3954]
[1727079219769,2.06,2644.1,2643.9,0.3954]
[1727079220275,2.43822,2644.1,2643.9,0.3954]
[1727079220472,2.06,2644.1,2643.9,0.3954]
[1727079223777,0.37823,2644.0,2643.9,0.3954]
[1727079224662,2.43822,2644.1,2643.9,0.3954]
[1727079224872,2.06,2644.1,2643.9,0.3954]
[1727079225269,2.06,2644.1,2643.9,0.7822]
[1727079225568,2.43822,2644.1,2643.9,0.3954]
[1727079225773,2.06,2644.1,2643.9,0.3954]
[1727079226176,2.43822,2644.1,2643.9,0.3954]
[1727079226971,2.06,2644.1,2643.9,0.3954]
[1727079227578,2.43822,2644.1,2643.9,0.3954]
[1727079228081,0.37825,2643.9,2643.7,3.3159]
[1727079228279,0.37826,2643.8,2643.7,3.3159]
[1727079228480,0.37826,2643.8,2643.7,0.1081]
[1727079229284,5.64605,2643.9,2643.7,0.1081]
[1727079229780,5.64605,2643.9,2643.4,0.7552]
[1727079229978,2.06,2643.5,2643.4,0.7552]
[1727079230181,2.06,2643.7,2643.4,0.7552]
[1727079230377,2.06,2643.5,2643.4,0.7552]
[1727079234486,2.06,2643.5,2642.9,3.2078]
[1727079234686,0.37833,2643.3,2643.0,0.3726]
[1727079235192,0.37832,2643.4,2643.0,0.3726]
[1727079235381,0.37831,2643.5,2643.0,0.3726]
[1727079235578,0.2774,2643.7,2643.0,0.3726]
[1727079235882,2.06,2643.1,2643.0,0.3726]
[1727079236587,0.37835,2643.2,2643.0,0.3726]
[1727079236782,2.06,2643.1,2643.0,0.3726]
[1727079239085,2.06,2643.3,2643.0,0.3726]
[1727079239389,2.06,2643.4,2643.2,3.2078]
[1727079239580,2.06,2643.6,2643.3,0.7631]
[1727079239780,2.06,2643.9,2643.6,0.37828]
[1727079239988,2.06,2643.9,2643.7,0.3835]
[1727079240188,2.06,2643.9,2643.3,3.2078]
[1727079240381,2.06,2643.5,2643.4,30.74891]
[1727079240579,2.06,2643.5,2643.4,30.3706]
[1727079240784,2.06,2643.5,2643.4,33.5784]
[1727079241480,2.06,2643.5,2643.4,30.3706]
[1727079241878,2.06,2643.5,2643.4,43.73991]
[1727079242286,2.06,2643.5,2643.4,37.73991]
[1727079242482,2.06,2643.7,2643.5,0.3783]
[1727079242785,2.06,2643.7,2643.4,33.9567]
[1727079242986,2.06,2643.7,2643.4,37.7391]
[1727079243587,2.06,2643.7,2643.4,33.5784]
[1727079243588,2.06,2643.5,2643.4,33.5784]
[1727079243792,2.06,2643.5,2643.4,33.95671]
[1727079243994,2.06,2643.5,2643.4,37.73991]
[1727079244194,2.06,2643.5,2643.4,37.3616]
[1727079245496,2.4383,2643.5,2643.4,3.5784]
[1727079245887,2.06,2643.5,2643.4,3.5784]
[1727079246492,2.4383,2643.5,2643.4,3.5784]
[1727079247893,6.2215,2643.5,2643.4,3.2078]
[1727079248994,6.2215,2643.5,2643.2,0.3609]
[1727079248995,0.37832,2643.4,2643.2,0.3609]
[1727079249188,2.06,2643.3,2643.2,0.3609]
[1727079251806,2.43833,2643.3,2643.2,0.3609]
[1727079252107,2.06,2643.3,2643.2,0.3609]
[1727079253202,2.43833,2643.3,2643.2,4.55322168]
[1727079255605,2.43833,2643.3,2643.2,1.34542168]
[1727079255811,2.43833,2643.3,2643.2,4.55322168]
[1727079256410,2.43833,2643.3,2643.2,3.5687]
[1727079256800,2.06,2643.3,2643.2,3.5687]
[1727079257006,2.06,2643.3,2643.2,4.55322168]
[1727079257210,2.43833,2643.3,2643.2,4.55322168]
[1727079258212,2.43833,2643.3,2643.2,0.3609]
[1727079260023,2.43833,2643.3,2643.0,0.98452168]
[1727079260321,2.43833,2643.3,2642.9,30.98452168]
[1727079260620,2.06,2643.0,2642.9,31.36032168]
[1727079261223,2.06,2643.0,2642.9,30.3758]
[1727079261417,2.06,2643.0,2642.9,34.1598]
[1727079261723,2.43837,2643.0,2642.9,30.3758]
[1727079261922,2.43837,2643.0,2642.9,0.3758]
[1727079262315,2.06,2643.0,2642.9,0.3758]
[1727079264117,2.43837,2643.0,2642.9,0.3758]
[1727079265214,2.43837,2643.0,2642.6,0.98452168]
[1727079265215,5.844,2643.0,2642.6,0.98452168]
[1727079265512,2.06,2642.7,2642.6,0.385]
[1727079267025,2.43841,2642.7,2642.6,0.385]
[1727079267326,2.06,2642.7,2642.6,0.385]
[1727079267830,2.06,2642.7,2642.4,0.368]
[1727079268027,0.37844,2642.5,2642.4,0.368]
[1727079268229,0.37846,2642.4,2642.3,0.3644]
[1727079268527,2.43846,2642.4,2642.3,0.3644]
[1727079273723,2.06,2642.4,2642.1,0.3736]
[1727079274027,2.06,2642.5,2642.1,0.3736]
[1727079274028,2.43849,2642.2,2642.1,0.3736]
[1727079274529,0.3785,2642.1,2642.0,0.3709]
[1727079276131,4.1633,2642.1,2642.0,0.3709]
[1727079278319,0.3785,2642.1,2642.0,0.3709]
[1727079279121,4.1633,2642.1,2642.0,0.3709]
[1727079280024,0.3785,2642.1,2642.0,0.3709]
[1727079280229,4.1633,2642.1,2642.0,0.3709]
[1727079280423,0.3785,2642.1,2642.0,0.3709]
[1727079280829,5.2678,2642.2,2642.0,0.3709]
[1727079281133,0.3785,2642.1,2642.0,0.3709]
[1727079281730,2.43849,2642.2,2642.0,0.3709]
[1727079281967,0.3785,2642.1,2642.0,0.3709]
[1727079284432,2.06,2642.2,2642.0,4.1557]
[1727079284637,2.06,2642.2,2642.0,4.53421]
[1727079284831,2.06,2642.2,2642.1,0.3812]
[1727079285037,2.06,2642.2,2642.1,30.3812]
[1727079285236,3.4856,2643.1,2642.1,41.11225]
[1727079285535,2.06,2642.6,2642.5,0.37844]
[1727079286029,2.06,2642.6,2642.5,4.16244]
[1727079286436,2.06,2642.6,2642.5,3.784]
[1727079286933,2.06,2642.6,2642.3,3.58626]
[1727079287137,1.2237,2643.1,2642.4,0.37846]
[1727079287138,0.37841,2642.8,2642.4,0.37846]
[1727079288138,2.06,2642.5,2642.4,0.37846]
[1727079288535,2.06,2642.5,2642.4,10.16246]
[1727079289038,4.127,2643.2,2642.4,10.16246]
[1727079289039,2.06,2642.7,2642.4,9.784]
[1727079289241,2.06,2642.7,2642.6,3.2078]
[1727079289439,2.06,2642.7,2642.6,3.58623]
[1727079289638,2.06,2642.7,2642.6,13.37023]
[1727079290048,2.06,2642.7,2642.6,10.16243]
[1727079290240,2.06,2642.7,2642.6,9.784]
[1727079290543,2.43841,2642.7,2642.4,0.37845]
[1727079290744,2.06,2642.5,2642.3,3.58626]
[1727079290935,2.06,2642.5,2642.3,3.2078]
[1727079291136,2.06,2642.5,2642.4,3.7848]
[1727079291541,2.43844,2642.5,2642.4,3.7848]
[1727079292143,2.43844,2642.5,2642.4,4.1553]
[1727079292345,2.06,2642.5,2642.4,4.1553]
[1727079292541,0.37843,2642.6,2642.4,4.53376]
[1727079292740,0.37843,2642.6,2642.5,3.784]
[1727079292939,0.37843,2642.6,2642.5,4.1666]
[1727079295450,2.43842,2642.7,2642.5,4.1666]
[1727079295647,2.43842,2642.7,2642.5,0.3826]
[1727079296549,0.37843,2642.6,2642.5,0.3826]
[1727079296742,2.06,2642.7,2642.3,3.2078]
[1727079297048,0.37846,2642.4,2642.3,3.2078]
[1727079297246,0.37849,2642.2,2642.1,0.7702]
[1727079297438,2.43849,2642.2,2641.9,3.2078]
[1727079297640,2.43849,2642.2,2642.0,30.0]
[1727079300750,2.06,2642.2,2642.0,30.0]
[1727079300941,2.06,2642.2,2642.0,30.37851]
[1727079301141,2.06,2642.2,2641.9,3.2078]
[1727079301751,2.06,2642.2,2641.9,33.58633]
[1727079302150,2.43849,2642.2,2641.9,33.2078]
[1727079303446,2.06,2642.2,2641.9,33.58633]
[1727079304488,2.06,2642.2,2641.9,33.2078]
[1727079304750,2.43849,2642.2,2641.9,33.2078]
[1727079305454,2.06,2642.2,2641.9,33.58633]
[1727079306451,2.43849,2642.2,2641.9,33.58633]
[1727079306652,2.43849,2642.2,2641.9,33.2078]
[1727079306948,0.37852,2642.0,2641.7,0.98452168]
[1727079307155,0.37855,2641.8,2641.5,4.19232168]
[1727079307457,2.06,2641.6,2641.5,4.19232168]
[1727079307648,2.06,2641.6,2641.3,3.2078]
[1727079307950,2.06,2641.6,2641.1,30.37863]
[1727079307951,0.75909,2641.5,2641.1,30.37863]
[1727079308159,2.06,2641.2,2641.1,30.37863]
[1727079308544,2.06,2641.2,2641.1,34.16503]
[1727079308748,2.06,2641.2,2641.1,33.7864]
[1727079308953,2.06,2641.2,2641.1,34.16504]
[1727079310250,2.06,2641.2,2641.1,33.7864]
[1727079310443,2.06,2641.2,2641.1,30.0]
[1727079311155,2.43863,2641.2,2641.1,30.0]
[1727079311550,2.06,2641.2,2641.1,30.0]
[1727079312654,2.06,2641.2,2641.1,33.2078]
[1727079312855,2.43863,2641.2,2641.1,33.2078]
[1727079313257,0.37866,2641.0,2640.9,0.7611]
[1727079313452,2.06,2641.0,2640.9,4.5475]
[1727079313855,2.06,2641.0,2640.9,34.5475]
[1727079314346,2.06,2641.0,2640.6,0.3669]
[1727079314347,2.43866,2641.0,2640.6,1.46556721]
[1727079314552,2.06,2640.7,2640.4,3.6037]
[1727079314951,2.4499,2640.7,2640.5,30.0]
[1727079315155,2.06,2640.7,2640.6,0.37872]
[1727079315558,2.06,2640.7,2640.6,4.16592]
[1727079315750,2.06,2641.1,2641.0,0.37866]
[1727079316245,2.06,2641.1,2641.0,33.58646]
[1727079316450,2.06,2641.1,2641.0,30.37866]
[1727079316849,2.06,2641.1,2641.0,30.0]
[1727079317359,2.06,2641.1,2641.0,33.58646]
[1727079317553,2.06,2641.1,2641.0,33.2078]
[1727079317751,2.06,2641.1,2641.0,33.58646]
[1727079317952,2.06,2641.1,2641.0,33.2078]
[1727079318565,2.06,2641.1,2641.0,33.58646]
[1727079321856,2.06,2641.1,2641.0,3.2078]
[1727079322053,5.8464,2641.1,2640.3,7.7109]
[1727079322255,5.2678,2641.2,2640.1,0.3628]
[1727079322256,2.06,2640.4,2640.1,0.3628]
[1727079322460,0.3672,2640.3,2639.8,0.3718]
[1727079322661,0.3672,2640.3,2640.0,3.5706]
[1727079322962,4.9076,2641.0,2640.0,3.5706]
[1727079323266,0.3917,2640.9,2640.5,3.2078]
[1727079323555,0.3917,2640.9,2640.5,3.58653]
[1727079323751,0.3917,2640.9,2640.7,0.37869]
[1727079323955,0.3917,2640.9,2640.6,0.3718]
[1727079323956,7.3348,2641.5,2640.8,3.2078]
[1727079324164,2.06,2641.3,2640.8,3.2078]
[1727079324348,2.06,2641.3,2641.0,0.37865]
[1727079324554,2.06,2641.3,2641.1,30.3718]
[1727079324753,2.06,2641.3,2641.1,34.33364]
[1727079325367,2.06,2641.3,2641.2,0.37863]
[1727079325961,0.7206,2641.7,2641.4,0.3786]
[1727079325962,2.06,2641.5,2641.4,0.3786]
[1727079326155,2.06,2641.5,2641.4,3.5864]
[1727079326856,2.06,2641.5,2641.4,3.2078]
[1727079327355,2.06,2641.5,2641.1,33.955]
[1727079327554,2.06,2641.3,2641.1,30.7472]
[1727079327752,2.06,2641.3,2641.2,3.2078]
[1727079328157,0.3917,2641.7,2641.2,3.2078]
[1727079328363,2.06,2641.4,2641.3,0.37861]
[1727079328567,0.3917,2641.7,2641.2,3.2078]
[1727079328864,0.3917,2641.7,2641.5,3.2078]
[1727079328865,2.4517,2641.7,2641.5,3.2078]
[1727079329066,2.4517,2641.7,2641.6,0.379]
[1727079329458,2.4517,2641.7,2641.6,0.7501]
[1727079329964,2.4517,2641.7,2641.6,1.12867]
[1727079330155,2.06,2641.7,2641.6,1.12867]
[1727079331065,2.06,2641.7,2641.6,0.7501]
[1727079331267,2.06,2641.7,2641.6,4.91427]
[1727079331864,2.06,2641.9,2641.7,0.37855]
[1727079332765,2.06,2641.9,2641.6,1.12867]
[1727079333259,1.1025,2642.0,2641.6,0.75757]
[1727079333260,2.06,2641.7,2641.6,0.75757]
[1727079333867,2.06,2642.3,2642.0,0.37851]
[1727079334267,2.06,2642.3,2642.2,3.58629]
[1727079334562,2.06,2642.3,2642.2,0.37849]
[1727079335069,2.06,2642.3,2642.1,0.37849]
[1727079335261,2.06,2642.3,2642.2,0.37849]
[1727079335456,2.06,2642.3,2642.2,3.58629]
[1727079335667,2.06,2642.3,2642.2,0.37849]
[1727079337261,0.3783,2642.4,2642.3,0.37847]
[1727079337465,2.06,2642.6,2642.4,0.37846]
[1727079337668,2.06,2642.6,2642.5,0.37844]
[1727079337876,0.3749,2642.7,2642.5,3.2078]
[1727079338170,2.4349,2642.7,2642.6,30.3619]
[1727079339266,2.4349,2642.7,2642.6,0.3619]
[1727079339567,2.4349,2642.7,2642.5,33.2078]
[1727079339768,2.4349,2642.7,2642.5,30.0]
[1727079339769,2.81331,2642.7,2642.5,30.0]
[1727079339965,2.81331,2642.7,2642.3,0.3619]
[1727079339966,2.4349,2642.7,2642.3,0.3619]
[1727079340166,2.06,2642.5,2642.3,0.3619]
[1727079340761,0.3749,2642.7,2642.4,0.37845]
[1727079340762,2.4349,2642.7,2642.4,0.37845]
[1727079341162,2.81332,2642.7,2642.4,0.37845]
[1727079341390,2.81332,2642.7,2642.3,0.74037]
[1727079341672,0.37844,2642.6,2642.3,0.74037]
[1727079341857,0.37846,2642.4,2642.2,3.2078]
[1727079342061,3.22827,2642.3,2642.2,3.2078]
[1727079342459,2.8498,2642.3,2641.7,0.37855]
[1727079342662,2.06,2642.0,2641.7,0.3967]
[1727079342961,0.3735,2642.2,2641.6,3.5739]
[1727079342962,2.06,2641.8,2641.6,3.5739]
[1727079343361,0.3735,2641.7,2641.6,0.3661]
[1727079343563,0.3735,2641.7,2641.4,0.3689]
[1727079343762,2.06,2641.5,2641.3,3.58641]
[1727079343962,2.06,2641.5,2641.3,3.2078]
[1727079344168,0.3661,2641.6,2641.3,3.2078]
[1727079344363,0.3661,2641.6,2641.3,3.58642]
[1727079345371,2.8152,2641.7,2641.4,0.37859]
[1727079345372,0.3735,2641.7,2641.4,0.37859]
[1727079345570,0.3735,2641.7,2641.3,3.5864]
[1727079345962,2.4335,2641.7,2641.3,3.2078]
[1727079346570,2.06,2641.4,2641.3,3.2078]
[1727079347361,0.37859,2641.5,2641.3,3.2078]
[1727079347573,0.37858,2641.6,2641.3,3.2078]
[1727079348175,2.81206,2641.7,2641.3,3.2078]
[1727079348370,0.3735,2641.7,2641.4,0.37859]
[1727079348570,0.3735,2641.7,2641.4,0.74439]
[1727079349082,2.06,2641.5,2641.3,3.2078]
[1727079349668,2.4335,2641.7,2641.4,0.3786]
[1727079349878,0.3735,2641.7,2641.5,0.37859]
[1727079350072,0.3735,2641.7,2641.4,0.7444]
[1727079350371,0.3735,2641.7,2641.5,0.37858]
[1727079351382,0.3735,2641.7,2641.4,0.7444]
[1727079352185,0.3735,2641.7,2641.4,0.3658]
[1727079352368,0.3786,2641.4,2641.3,3.2078]
[1727079352679,0.3786,2641.4,2641.0,3.5767]
[1727079352680,0.37863,2641.2,2641.0,3.5767]
[1727079352876,1.13362,2641.3,2641.0,3.5767]
[1727079353181,1.13362,2641.3,2641.0,33.5767]
[1727079353375,0.755,2641.3,2641.0,33.95536]
[1727079353689,0.755,2641.3,2641.0,33.5767]
[1727079354273,2.06,2641.1,2641.0,3.2078]
[1727079354685,2.43864,2641.1,2641.0,3.2078]
[1727079354877,2.06,2641.1,2641.0,3.2078]
[1727079356583,2.43864,2641.1,2641.0,3.2078]
[1727079358278,0.37867,2641.0,2640.7,3.2078]
[1727079358673,0.3944,2640.9,2640.7,3.2078]
[1727079359580,0.3944,2640.9,2640.7,3.5865]
[1727079359782,0.3944,2640.9,2640.7,3.2078]
[1727079360179,0.3944,2640.9,2640.7,3.5865]
[1727079361883,0.3944,2640.9,2640.7,3.58649]
[1727079362084,0.77308,2640.9,2640.7,3.2078]
[1727079362286,0.3944,2640.9,2640.6,30.0]
[1727079362479,0.37869,2640.8,2640.6,30.0]
[1727079362685,2.4544,2640.9,2640.5,0.7549]
[1727079362686,0.37872,2640.6,2640.5,0.7549]
[1727079362885,0.37872,2640.6,2640.4,3.2078]
[1727079363290,0.3656,2640.5,2640.4,33.2078]
[1727079363789,0.3656,2640.5,2640.4,3.2078]
[1727079364288,2.4233,2640.7,2640.4,3.58654]
[1727079364595,0.3633,2640.7,2640.4,3.2078]
[1727079364888,0.37869,2640.8,2640.5,0.37872]
[1727079365075,2.4256,2640.9,2640.5,0.37872]
[1727079365076,2.80428,2640.9,2640.5,0.37872]
[1727079365277,0.37873,2640.5,2640.4,3.2078]
[1727079365492,0.37873,2640.5,2640.3,30.0]
[1727079366280,0.7651,2640.4,2640.3,30.0]
[1727079366677,0.7651,2640.4,2640.2,0.3651]
[1727079367186,2.06,2640.7,2640.3,33.7872]
[1727079367397,3.2078,2641.2,2640.5,0.37872]
[1727079367398,2.06,2640.9,2640.5,0.37872]
[1727079367588,2.06,2640.9,2640.4,3.9424]
[1727079367891,2.06,2640.9,2640.5,0.37873]
[1727079368092,2.06,2640.9,2640.6,0.37871]
[1727079368391,2.06,2640.9,2640.7,0.3963]
[1727079368588,0.3791,2641.1,2640.7,0.3963]
[1727079368782,3.2078,2641.5,2641.0,3.2078]
[1727079368986,3.2078,2641.5,2640.8,4.1761]
[1727079368987,2.06,2641.8,2641.4,3.58639]
[1727079369489,2.06,2641.8,2641.4,0.37859]
[1727079369793,2.06,2641.8,2641.5,30.0]
[1727079369989,0.37856,2641.7,2641.5,30.0]
[1727079370180,2.06,2641.6,2641.3,0.3963]
[1727079370686,0.3907,2641.7,2641.3,0.3963]
[1727079370890,0.3907,2641.7,2641.4,3.58639]
[1727079371281,0.3907,2641.7,2641.5,0.37859]
[1727079371481,3.2078,2642.1,2641.6,30.0]
[1727079371482,2.06,2642.1,2641.6,30.0]
[1727079371684,2.06,2642.1,2641.7,3.2078]
[1727079372788,2.06,2641.9,2641.7,3.2078]
[1727079372998,0.37854,2641.8,2641.7,3.2078]
[1727079373288,2.43854,2641.9,2641.7,3.2078]
[1727079374083,2.43854,2641.9,2641.3,0.3963]
[1727079374284,2.06,2641.7,2641.4,3.2078]
[1727079374485,2.43856,2641.7,2641.5,30.0]
[1727079374699,2.06,2641.7,2641.0,3.2078]
[1727079374901,2.06,2641.1,2641.0,3.2078]
[1727079375199,1.49175578,2641.1,2641.0,3.2078]
[1727079376203,1.49175578,2641.1,2640.7,0.8708]
[1727079376204,0.37867,2640.9,2640.7,0.1081]
[1727079376398,2.06,2640.8,2640.7,0.1081]
[1727079376799,3.1642,2641.0,2640.7,0.1081]
[1727079376988,0.7397,2641.0,2640.7,0.1081]
[1727079377198,0.7397,2641.0,2640.8,0.37868]
[1727079377496,2.06,2641.2,2640.9,0.37867]
[1727079378395,2.06,2641.2,2640.8,3.58648]
[1727079378593,3.5428,2641.4,2640.9,0.37867]
[1727079378897,3.5428,2641.4,2640.8,3.58648]
[1727079378898,0.37862,2641.3,2640.8,3.58648]
[1727079379288,0.37862,2641.3,2640.9,0.37867]
[1727079379796,0.37862,2641.3,2640.8,3.58648]
[1727079380501,2.06,2641.1,2640.8,3.58648]
[1727079381187,2.06,2641.1,2640.8,3.2078]
[1727079381387,2.43865,2641.1,2640.8,3.2078]
[1727079381599,2.43868,2640.9,2640.7,0.4752]
[1727079382102,2.43868,2640.9,2640.7,3.683]
[1727079382402,2.06,2640.9,2640.7,3.683]
[1727079382698,2.43867,2640.9,2640.7,3.683]
[1727079383092,0.37869,2640.8,2640.7,0.1081]
[1727079383390,1.54349,2640.8,2640.7,0.1081]
[1727079383597,5.33069,2640.8,2640.7,0.1081]
[1727079383996,1.1648,2640.8,2640.7,0.1081]
[1727079384298,2.06,2640.9,2640.7,0.1081]
[1727079385192,2.43869,2640.9,2640.7,0.1081]
[1727079385397,2.06,2640.9,2640.7,0.1081]
[1727079386396,2.43868,2640.9,2640.7,0.1081]
[1727079387393,2.06,2640.9,2640.7,0.1081]
[1727079387591,4.127,2641.8,2640.8,3.2078]
[1727079387899,0.3786,2641.4,2640.9,0.3703]
[1727079388100,2.06,2641.1,2640.9,1.83586721]
[1727079388394,2.06,2641.1,2641.0,30.0]
[1727079388792,2.06,2641.1,2640.9,0.3703]
[1727079389402,2.43865,2641.1,2640.9,30.3703]
[1727079390400,0.37866,2641.0,2640.8,3.2078]
[1727079390594,1.50977,2641.0,2640.8,3.2078]
[1727079391207,2.43867,2640.9,2640.8,3.2078]
[1727079391386,2.06,2640.9,2640.8,3.2078]
[1727079391692,1.1311,2641.0,2640.8,3.2078]
[1727079391899,0.7361,2641.0,2640.8,3.2078]
[1727079393398,0.37867,2640.9,2640.8,3.2078]
[1727079393597,0.76547,2640.9,2640.8,3.2078]
[1727079393798,0.37869,2640.8,2640.6,30.396]
[1727079394095,2.06,2640.9,2640.6,30.396]
[1727079394298,0.7361,2641.0,2640.8,3.2078]
[1727079394299,1.11476,2641.0,2640.8,3.2078]
[1727079394802,0.7361,2641.0,2640.8,0.37868]
[1727079395503,1.11476,2641.0,2640.8,3.2078]
[1727079395901,1.11476,2641.0,2640.6,30.396]
[1727079395902,0.7361,2641.0,2640.6,30.396]
[1727079396106,0.7361,2641.0,2640.7,0.3787]
[1727079396404,0.7361,2641.0,2640.8,3.2078]
[1727079396603,0.37867,2640.9,2640.8,3.2078]
[1727079396812,0.37867,2640.9,2640.6,30.77471]
[1727079397899,0.3634,2641.0,2640.9,0.37867]
[1727079399404,0.76423,2641.3,2641.0,0.37866]
[1727079399705,2.4468,2641.4,2641.1,0.74824]
[1727079399706,0.3786,2641.4,2641.1,0.74824]
[1727079400298,0.37862,2641.3,2641.1,0.3696]
[1727079400500,0.37861,2641.4,2641.1,0.74824]
[1727079402103,0.393,2641.5,2641.3,0.37861]
[1727079402413,1.15057,2641.7,2641.4,0.3786]
[1727079402702,1.15057,2641.7,2641.5,3.2078]
[1727079402703,0.3856,2641.7,2641.5,3.2078]
[1727079402906,4.127,2642.3,2641.5,3.2078]
[1727079402907,6.187,2642.3,2641.5,3.2078]
[1727079403212,0.37851,2642.1,2641.8,0.37853]
[1727079403403,0.37851,2642.1,2641.8,3.58633]
[1727079403794,1.1056,2642.2,2641.8,3.2078]
[1727079403999,2.06,2642.5,2641.8,3.2078]
[1727079404000,0.37845,2642.5,2642.2,0.37848]
[1727079404297,1.49112,2642.7,2642.4,0.37845]
[1727079404501,0.37843,2642.6,2642.3,0.37846]
[1727079404898,2.06,2642.6,2642.4,0.37845]
[1727079405108,2.06,2642.6,2642.3,0.37846]
[1727079405304,2.43844,2642.6,2642.3,0.37846]
[1727079405508,0.37847,2642.3,2642.2,30.0]
[1727079405810,2.43846,2642.4,2642.2,30.0]
[1727079406002,2.43846,2642.4,2642.2,0.37848]
[1727079406003,2.06,2642.4,2642.2,0.37848]
[1727079407405,2.43846,2642.4,2642.1,3.58629]
[1727079407612,0.37848,2642.3,2642.1,3.2078]
[1727079408106,2.06,2642.4,2642.1,3.2078]
[1727079408107,0.37849,2642.2,2642.1,3.2078]
[1727079408307,2.43849,2642.2,2642.1,3.2078]
[1727079408505,6.22329,2642.2,2642.1,3.2078]
[1727079409015,2.80849,2642.2,2642.1,3.2078]
[1727079409306,2.43,2642.2,2642.1,3.2078]
[1727079409609,2.80849,2642.2,2642.1,3.2078]
[1727079410608,0.37852,2642.0,2641.7,3.2078]
[1727079410907,2.06,2641.9,2641.7,3.2078]
[1727079411105,2.06,2641.9,2641.7,33.2078]
[1727079411306,2.06,2641.9,2641.7,3.2078]
[1727079411704,2.43854,2641.9,2641.7,33.2078]
[1727079412001,3.7856,2641.8,2641.3,3.2078]
[1727079412203,0.37858,2641.6,2641.3,3.2078]
[1727079412704,0.74248,2641.6,2641.3,3.2078]
[1727079412906,0.74248,2641.6,2641.3,3.5864]
[1727079412907,0.3639,2641.6,2641.3,3.5864]
[1727079413210,2.06,2641.9,2641.3,3.2078]
[1727079413401,0.74242,2642.0,2641.6,0.37857]
[1727079413602,0.3639,2642.0,2641.7,0.74595]
[1727079414104,0.37853,2641.9,2641.7,0.3674]
[1727079414531,2.43853,2641.9,2641.7,0.3674]
[1727079415705,2.06,2641.9,2641.7,0.3674]
[1727079416011,2.43853,2641.9,2641.7,0.3674]
[1727079417299,2.43853,2641.9,2641.3,3.2078]
[1727079417300,2.06,2641.9,2641.3,3.2078]
[1727079417500,2.06,2641.7,2641.3,3.2078]
[1727079417704,0.3928,2641.6,2641.3,3.58641]
[1727079418599,0.77137,2641.6,2641.3,3.58641]
[1727079418811,0.77137,2641.6,2641.3,3.2078]
[1727079419107,0.77137,2641.6,2641.3,3.58641]
[1727079420306,0.3786,2641.4,2641.3,3.2078]
[1727079420510,2.06,2641.4,2640.9,3.2078]